[Event "Titled Tuesday Blitz February 15 Late 2022"]
[White "Abdrlauf, Elham"]
[Black "Sargsyan, Anna M."]
[WhiteFideId "1533533"]
[BlackFideId "13308130"]
[WhiteElo "2334"]
[BlackElo "2271"]
[Result "1-0"]
[Round "04"]
[TimeControl "180+1"]
[Date "2022.02.15"]
[WhiteClock "0:01:30"]
[BlackClock "0:01:05"]

1. e4 {[%clk 0:02:59]}  c6 {[%clk 0:02:59]} 2. d4 {[%clk 0:03:00]}  d5 {[%clk 0:03:00]} 3. Nc3 {[%clk 0:03:00]}  dxe4 {[%clk 0:02:59]} 4. Nxe4 {[%clk 0:03:01]}  Nd7 {[%clk 0:02:59]} 5. Nf3 {[%clk 0:03:01]}  Ngf6 {[%clk 0:02:59]} 6. Nxf6+ {[%clk 0:03:01]}  Nxf6 {[%clk 0:03:00]} 7. Bc4 {[%clk 0:03:02]}  Bf5 {[%clk 0:02:59]} 8. O-O {[%clk 0:02:59]}  e6 {[%clk 0:03:00]} 9. Re1 {[%clk 0:02:57]}  Bd6 {[%clk 0:02:59]} 10. Qe2 {[%clk 0:02:55]}  O-O {[%clk 0:02:58]} 11. Bg5 {[%clk 0:02:54]}  h6 {[%clk 0:02:58]} 12. Bh4 {[%clk 0:02:53]}  Be7 {[%clk 0:02:57]} 13. Rad1 {[%clk 0:02:51]}  Nd5 {[%clk 0:02:55]} 14. Bxe7 {[%clk 0:02:51]}  Qxe7 {[%clk 0:02:55]} 15. c3 {[%clk 0:02:50]}  Qf6 {[%clk 0:02:51]} 16. Ne5 {[%clk 0:02:49]}  Nf4 {[%clk 0:02:44]} 17. Qf3 {[%clk 0:02:47]}  Qg5 {[%clk 0:02:37]} 18. g3 {[%clk 0:02:37]}  Nh3+ {[%clk 0:02:37]} 19. Kg2 {[%clk 0:02:37]}  Rad8 {[%clk 0:02:04]} 20. Bd3 {[%clk 0:02:24]}  f6 {[%clk 0:01:54]} 21. Bxf5 {[%clk 0:01:52]}  fxe5 {[%clk 0:01:52]} 22. Rxe5 {[%clk 0:01:36]}  Rxf5 {[%clk 0:01:09]} 23. Rxf5 {[%clk 0:01:35]}  exf5 {[%clk 0:01:10]} 24. Kxh3 {[%clk 0:01:36]}  Re8 {[%clk 0:01:10]} 25. Kg2 {[%clk 0:01:32]}  Re4 {[%clk 0:01:09]} 26. d5 {[%clk 0:01:30]}  cxd5 {[%clk 0:01:08]} 27. Rxd5 {[%clk 0:01:30]}  g6 {[%clk 0:01:05]} 28. Qxe4 {[%clk 0:01:30]} 1-0


[Site "https://www.chess.com"]

[Event "Titled Tuesday Blitz February 15 Late 2022"]
[White "Abdyzhapar, Asylbek"]
[Black "Bluebaum, Matthias"]
[WhiteFideId "13800337"]
[BlackFideId "24651516"]
[WhiteElo "2575"]
[BlackElo "2810"]
[Result "0-1"]
[Round "04"]
[TimeControl "180+1"]
[Date "2022.02.16"]
[WhiteClock "0:00:02"]
[BlackClock "0:01:08"]

1. d4 {[%clk 0:03:00]}  Nf6 {[%clk 0:02:59]} 2. Bf4 {[%clk 0:02:59]}  d5 {[%clk 0:02:59]} 3. e3 {[%clk 0:02:59]}  c5 {[%clk 0:02:59]} 4. c3 {[%clk 0:02:59]}  Nc6 {[%clk 0:02:59]} 5. Nd2 {[%clk 0:02:59]}  Bf5 {[%clk 0:02:57]} 6. Qb3 {[%clk 0:02:58]}  Qc8 {[%clk 0:02:56]} 7. Ngf3 {[%clk 0:02:58]}  e6 {[%clk 0:02:56]} 8. Nh4 {[%clk 0:02:45]}  Be4 {[%clk 0:02:56]} 9. f3 {[%clk 0:02:32]}  Bg6 {[%clk 0:02:55]} 10. Nxg6 {[%clk 0:02:31]}  hxg6 {[%clk 0:02:56]} 11. g4 {[%clk 0:02:21]}  Be7 {[%clk 0:02:56]} 12. Be2 {[%clk 0:02:20]}  Nd7 {[%clk 0:02:55]} 13. Kf2 {[%clk 0:02:15]}  c4 {[%clk 0:02:49]} 14. Qc2 {[%clk 0:02:14]}  Bh4+ {[%clk 0:02:49]} 15. Bg3 {[%clk 0:02:14]}  Qc7 {[%clk 0:02:49]} 16. f4 {[%clk 0:02:12]}  O-O-O {[%clk 0:02:47]} 17. b3 {[%clk 0:02:10]}  cxb3 {[%clk 0:02:47]} 18. axb3 {[%clk 0:02:10]}  g5 {[%clk 0:02:44]} 19. Kg2 {[%clk 0:02:07]}  gxf4 {[%clk 0:02:41]} 20. exf4 {[%clk 0:02:07]}  Nxd4 {[%clk 0:02:38]} 21. Qd3 {[%clk 0:02:07]}  Nxe2 {[%clk 0:02:37]} 22. Qxe2 {[%clk 0:02:07]}  Bxg3 {[%clk 0:02:37]} 23. hxg3 {[%clk 0:02:07]}  Rxh1 {[%clk 0:02:37]} 24. Rxh1 {[%clk 0:02:06]}  Qxc3 {[%clk 0:02:37]} 25. g5 {[%clk 0:02:03]}  Kb8 {[%clk 0:02:36]} 26. Nf3 {[%clk 0:02:02]}  Qxb3 {[%clk 0:02:34]} 27. Rh7 {[%clk 0:01:59]}  Rc8 {[%clk 0:02:32]} 28. Ne1 {[%clk 0:01:54]}  Nc5 {[%clk 0:02:20]} 29. Qe5+ {[%clk 0:01:40]}  Ka8 {[%clk 0:02:20]} 30. Qc7 {[%clk 0:01:40]}  Rb8 {[%clk 0:02:11]} 31. Qxc5 {[%clk 0:01:40]}  Qb1 {[%clk 0:01:57]} 32. Nc2 {[%clk 0:01:38]}  Qd1 {[%clk 0:01:49]} 33. Nd4 {[%clk 0:01:18]}  Qd2+ {[%clk 0:01:46]} 34. Kh3 {[%clk 0:01:18]}  Qd3 {[%clk 0:01:42]} 35. Rh4 {[%clk 0:00:59]}  Qf1+ {[%clk 0:01:36]} 36. Kg4 {[%clk 0:00:57]}  Qd1+ {[%clk 0:01:34]} 37. Nf3 {[%clk 0:00:48]}  f5+ {[%clk 0:01:32]} 38. gxf6 {[%clk 0:00:47]}  gxf6 {[%clk 0:01:33]} 39. Qc3 {[%clk 0:00:32]}  Rg8+ {[%clk 0:01:29]} 40. Kh3 {[%clk 0:00:32]}  Qf1+ {[%clk 0:01:29]} 41. Kh2 {[%clk 0:00:30]}  Qf2+ {[%clk 0:01:30]} 42. Kh1 {[%clk 0:00:29]}  Qxg3 {[%clk 0:01:29]} 43. Rh2 {[%clk 0:00:29]}  a6 {[%clk 0:01:21]} 44. Qe3 {[%clk 0:00:23]}  e5 {[%clk 0:01:21]} 45. fxe5 {[%clk 0:00:22]}  fxe5 {[%clk 0:01:22]} 46. Qf2 {[%clk 0:00:12]}  Qf4 {[%clk 0:01:21]} 47. Ne1 {[%clk 0:00:09]}  Qe4+ {[%clk 0:01:21]} 48. Ng2 {[%clk 0:00:09]}  d4 {[%clk 0:01:18]} 49. Rh4 {[%clk 0:00:03]}  Qb1+ {[%clk 0:01:18]} 50. Kh2 {[%clk 0:00:03]}  Qg6 {[%clk 0:01:17]} 51. Rh3 {[%clk 0:00:03]}  a5 {[%clk 0:01:13]} 52. Qd2 {[%clk 0:00:02]}  Kb8 {[%clk 0:01:08]} 0-1


[Site "https://www.chess.com"]

[Event "Titled Tuesday Blitz February 15 Late 2022"]
[White "Adewumi, Tanitoluwa"]
[Black "Qashashvili, Alexandre"]
[WhiteFideId "30966396"]
[BlackFideId "13600842"]
[WhiteElo "2548"]
[BlackElo "2316"]
[Result "1/2-1/2"]
[Round "04"]
[TimeControl "180+1"]
[Date "2022.02.16"]
[WhiteClock "0:00:09"]
[BlackClock "0:00:07"]

1. b3 {[%clk 0:03:00]}  c6 {[%clk 0:03:00]} 2. Bb2 {[%clk 0:02:59]}  d5 {[%clk 0:03:01]} 3. e3 {[%clk 0:02:58]}  Nf6 {[%clk 0:03:02]} 4. Nf3 {[%clk 0:02:59]}  Bg4 {[%clk 0:03:02]} 5. Be2 {[%clk 0:02:57]}  e6 {[%clk 0:03:02]} 6. Ne5 {[%clk 0:02:57]}  Bxe2 {[%clk 0:03:01]} 7. Qxe2 {[%clk 0:02:58]}  Nbd7 {[%clk 0:03:02]} 8. O-O {[%clk 0:02:57]}  Nxe5 {[%clk 0:03:00]} 9. Bxe5 {[%clk 0:02:56]}  Bd6 {[%clk 0:03:01]} 10. Bb2 {[%clk 0:02:56]}  Qe7 {[%clk 0:03:00]} 11. d3 {[%clk 0:02:53]}  O-O {[%clk 0:03:00]} 12. a3 {[%clk 0:02:52]}  h6 {[%clk 0:03:00]} 13. Nd2 {[%clk 0:02:52]}  e5 {[%clk 0:03:00]} 14. Nf3 {[%clk 0:02:43]}  e4 {[%clk 0:02:54]} 15. Nd4 {[%clk 0:02:41]}  Be5 {[%clk 0:02:54]} 16. g3 {[%clk 0:02:31]}  c5 {[%clk 0:02:47]} 17. Nf5 {[%clk 0:01:33]}  Qe6 {[%clk 0:02:44]} 18. Bxe5 {[%clk 0:01:33]}  Qxe5 {[%clk 0:02:43]} 19. Nh4 {[%clk 0:01:34]}  Rfe8 {[%clk 0:02:32]} 20. Rad1 {[%clk 0:01:32]}  Rad8 {[%clk 0:02:30]} 21. d4 {[%clk 0:01:19]}  cxd4 {[%clk 0:02:24]} 22. Rxd4 {[%clk 0:01:20]}  Rc8 {[%clk 0:02:22]} 23. Rfd1 {[%clk 0:01:17]}  Rc7 {[%clk 0:02:21]} 24. R1d2 {[%clk 0:01:15]}  Rec8 {[%clk 0:02:21]} 25. Ng2 {[%clk 0:01:15]}  Qe7 {[%clk 0:02:11]} 26. a4 {[%clk 0:01:11]}  Qa3 {[%clk 0:02:09]} 27. Nf4 {[%clk 0:01:09]}  Qc1+ {[%clk 0:02:08]} 28. Kg2 {[%clk 0:01:03]}  Rxc2 {[%clk 0:02:06]} 29. Nxd5 {[%clk 0:00:59]}  Nxd5 {[%clk 0:02:03]} 30. Rxd5 {[%clk 0:00:58]}  Rxd2 {[%clk 0:02:00]} 31. Rxd2 {[%clk 0:00:58]}  Qc3 {[%clk 0:01:49]} 32. Qg4 {[%clk 0:00:59]}  Re8 {[%clk 0:01:26]} 33. Qd7 {[%clk 0:00:53]}  Re6 {[%clk 0:01:22]} 34. Qd8+ {[%clk 0:00:38]}  Kh7 {[%clk 0:01:22]} 35. Rd7 {[%clk 0:00:38]}  Rf6 {[%clk 0:01:01]} 36. b4 {[%clk 0:00:20]}  Qxb4 {[%clk 0:00:51]} 37. Rd4 {[%clk 0:00:20]}  Qb2 {[%clk 0:00:37]} 38. Rd2 {[%clk 0:00:20]}  Qe5 {[%clk 0:00:36]} 39. Rd4 {[%clk 0:00:18]}  Qf5 {[%clk 0:00:32]} 40. Rd2 {[%clk 0:00:18]}  Qf3+ {[%clk 0:00:31]} 41. Kg1 {[%clk 0:00:18]}  Rc6 {[%clk 0:00:26]} 42. Rd1 {[%clk 0:00:15]}  Rc2 {[%clk 0:00:26]} 43. Rf1 {[%clk 0:00:15]}  f5 {[%clk 0:00:20]} 44. Qd5 {[%clk 0:00:14]}  Rb2 {[%clk 0:00:19]} 45. Qd4 {[%clk 0:00:13]}  Rb6 {[%clk 0:00:16]} 46. a5 {[%clk 0:00:13]}  Ra6 {[%clk 0:00:15]} 47. Qd5 {[%clk 0:00:14]}  b6 {[%clk 0:00:14]} 48. axb6 {[%clk 0:00:14]}  Rxb6 {[%clk 0:00:14]} 49. Qa5 {[%clk 0:00:14]}  Rb2 {[%clk 0:00:14]} 50. Qxa7 {[%clk 0:00:14]}  Rd2 {[%clk 0:00:14]} 51. Qa4 {[%clk 0:00:13]}  Rd3 {[%clk 0:00:13]} 52. Qc2 {[%clk 0:00:11]}  h5 {[%clk 0:00:12]} 53. h4 {[%clk 0:00:09]}  Kh6 {[%clk 0:00:10]} 54. Qc6+ {[%clk 0:00:08]}  Kh7 {[%clk 0:00:10]} 55. Qc2 {[%clk 0:00:08]}  Kh6 {[%clk 0:00:09]} 56. Kh2 {[%clk 0:00:08]}  Kh7 {[%clk 0:00:07]} 57. Qc8 {[%clk 0:00:07]}  Rd2 {[%clk 0:00:06]} 58. Kg1 {[%clk 0:00:06]}  Rd1 {[%clk 0:00:06]} 59. Rxd1 {[%clk 0:00:04]}  Qxd1+ {[%clk 0:00:07]} 60. Kg2 {[%clk 0:00:04]}  Qf3+ {[%clk 0:00:07]} 61. Kg1 {[%clk 0:00:05]}  Qg4 {[%clk 0:00:08]} 62. Qe6 {[%clk 0:00:05]}  Qg6 {[%clk 0:00:07]} 63. Qe5 {[%clk 0:00:04]}  Kh6 {[%clk 0:00:06]} 64. Qf4+ {[%clk 0:00:04]}  Kh7 {[%clk 0:00:06]} 65. Kh2 {[%clk 0:00:05]}  Qg4 {[%clk 0:00:06]} 66. Qe5 {[%clk 0:00:05]}  Qg6 {[%clk 0:00:05]} 67. Kg2 {[%clk 0:00:05]}  Qg4 {[%clk 0:00:05]} 68. Kf1 {[%clk 0:00:05]}  Qd1+ {[%clk 0:00:05]} 69. Kg2 {[%clk 0:00:06]}  Qf3+ {[%clk 0:00:05]} 70. Kg1 {[%clk 0:00:06]}  Qg4 {[%clk 0:00:06]} 71. Qd4 {[%clk 0:00:06]}  Qf3 {[%clk 0:00:06]} 72. Kf1 {[%clk 0:00:06]}  Qg4 {[%clk 0:00:07]} 73. Ke1 {[%clk 0:00:06]}  Qf3 {[%clk 0:00:07]} 74. Qe5 {[%clk 0:00:07]}  Qg4 {[%clk 0:00:07]} 75. Kd2 {[%clk 0:00:06]}  Qf3 {[%clk 0:00:07]} 76. Ke1 {[%clk 0:00:07]}  Qg4 {[%clk 0:00:07]} 77. Qe6 {[%clk 0:00:07]}  Qf3 {[%clk 0:00:06]} 78. Qe8 {[%clk 0:00:07]}  Qh1+ {[%clk 0:00:05]} 79. Kd2 {[%clk 0:00:08]}  Qf3 {[%clk 0:00:06]} 80. Ke1 {[%clk 0:00:08]}  Qh1+ {[%clk 0:00:06]} 81. Ke2 {[%clk 0:00:08]}  Qf3+ {[%clk 0:00:06]} 82. Kf1 {[%clk 0:00:09]}  Qh1+ {[%clk 0:00:06]} 83. Ke2 {[%clk 0:00:09]}  Qf3+ {[%clk 0:00:07]} 84. Ke1 {[%clk 0:00:09]} 1/2-1/2


[Site "https://www.chess.com"]

[Event "Titled Tuesday Blitz February 15 Late 2022"]
[White "Al Hosani, Omran"]
[Black "Terletsky, Oleg"]
[WhiteFideId "9308733"]
[BlackFideId "14116774"]
[WhiteElo "2246"]
[BlackElo "2050"]
[Result "1-0"]
[Round "04"]
[TimeControl "180+1"]
[Date "2022.02.16"]
[WhiteClock "0:00:14"]
[BlackClock "0:00:01"]

1. e4 {[%clk 0:02:58]}  e5 {[%clk 0:02:57]} 2. Nf3 {[%clk 0:02:58]}  Nc6 {[%clk 0:02:57]} 3. Bb5 {[%clk 0:02:59]}  a6 {[%clk 0:02:57]} 4. Ba4 {[%clk 0:02:59]}  Nf6 {[%clk 0:02:57]} 5. O-O {[%clk 0:02:59]}  Be7 {[%clk 0:02:57]} 6. Re1 {[%clk 0:02:58]}  b5 {[%clk 0:02:58]} 7. Bb3 {[%clk 0:02:58]}  d6 {[%clk 0:02:58]} 8. h3 {[%clk 0:02:55]}  O-O {[%clk 0:02:59]} 9. c3 {[%clk 0:02:56]}  Re8 {[%clk 0:02:59]} 10. d4 {[%clk 0:02:55]}  Bb7 {[%clk 0:02:58]} 11. Nbd2 {[%clk 0:02:55]}  Bf8 {[%clk 0:02:58]} 12. Nf1 {[%clk 0:02:55]}  h6 {[%clk 0:02:47]} 13. Ng3 {[%clk 0:02:55]}  Qd7 {[%clk 0:02:47]} 14. a4 {[%clk 0:02:54]}  Rad8 {[%clk 0:02:29]} 15. axb5 {[%clk 0:02:52]}  axb5 {[%clk 0:02:30]} 16. d5 {[%clk 0:02:49]}  Ne7 {[%clk 0:02:30]} 17. Be3 {[%clk 0:02:49]}  c6 {[%clk 0:02:28]} 18. c4 {[%clk 0:02:42]}  bxc4 {[%clk 0:02:24]} 19. Ba4 {[%clk 0:02:40]}  Ra8 {[%clk 0:02:16]} 20. Nd2 {[%clk 0:02:31]}  Rxa4 {[%clk 0:01:59]} 21. Qxa4 {[%clk 0:02:30]}  cxd5 {[%clk 0:01:59]} 22. Qxd7 {[%clk 0:02:30]}  Nxd7 {[%clk 0:02:00]} 23. Ra7 {[%clk 0:02:28]}  Rb8 {[%clk 0:01:53]} 24. exd5 {[%clk 0:02:23]}  Nxd5 {[%clk 0:01:40]} 25. Nxc4 {[%clk 0:02:21]}  Nxe3 {[%clk 0:01:33]} 26. Nxe3 {[%clk 0:02:22]}  d5 {[%clk 0:01:23]} 27. b4 {[%clk 0:01:50]}  Nb6 {[%clk 0:00:44]} 28. b5 {[%clk 0:01:39]}  g6 {[%clk 0:00:39]} 29. Rc1 {[%clk 0:01:37]}  Bd6 {[%clk 0:00:33]} 30. h4 {[%clk 0:01:23]}  h5 {[%clk 0:00:31]} 31. Nxh5 {[%clk 0:01:02]}  gxh5 {[%clk 0:00:30]} 32. Nf5 {[%clk 0:01:02]}  Bf8 {[%clk 0:00:18]} 33. Rc7 {[%clk 0:01:00]}  Bc8 {[%clk 0:00:18]} 34. Rxf7 {[%clk 0:00:50]}  Be6 {[%clk 0:00:16]} 35. Rf6 {[%clk 0:00:43]}  Nc8 {[%clk 0:00:15]} 36. Ra3 {[%clk 0:00:18]}  Bxf5 {[%clk 0:00:11]} 37. Rg3+ {[%clk 0:00:17]}  Bg7 {[%clk 0:00:09]} 38. Rxf5 {[%clk 0:00:17]}  Rxb5 {[%clk 0:00:04]} 39. Rxe5 {[%clk 0:00:16]}  Nd6 {[%clk 0:00:03]} 40. Rxh5 {[%clk 0:00:12]}  Rb1+ {[%clk 0:00:01]} 41. Kh2 {[%clk 0:00:13]}  Rb7 {[%clk 0:00:02]} 42. Rxd5 {[%clk 0:00:13]}  Ne4 {[%clk 0:00:01]} 43. Re3 {[%clk 0:00:13]}  Nxf2 {[%clk 0:00:01]} 44. Rf5 {[%clk 0:00:14]} 1-0


[Site "https://www.chess.com"]

[Event "Titled Tuesday Blitz February 15 Late 2022"]
[White "Aradhya, Garg"]
[Black "Jacobson, Brandon"]
[WhiteFideId "25006746"]
[BlackFideId "30901561"]
[WhiteElo "2169"]
[BlackElo "2362"]
[Result "1-0"]
[Round "04"]
[TimeControl "180+1"]
[Date "2022.02.15"]
[WhiteClock "0:00:13"]
[BlackClock "0:00:01"]

1. d4 {[%clk 0:02:57]}  Nf6 {[%clk 0:03:00]} 2. c4 {[%clk 0:02:57]}  g6 {[%clk 0:03:01]} 3. g3 {[%clk 0:02:55]}  c5 {[%clk 0:03:01]} 4. Nf3 {[%clk 0:02:52]}  Bg7 {[%clk 0:03:00]} 5. Bg2 {[%clk 0:02:52]}  Qa5+ {[%clk 0:03:01]} 6. Nc3 {[%clk 0:02:51]}  Ne4 {[%clk 0:03:01]} 7. O-O {[%clk 0:02:51]}  Nxc3 {[%clk 0:02:59]} 8. bxc3 {[%clk 0:02:52]}  O-O {[%clk 0:02:48]} 9. Qb3 {[%clk 0:02:51]}  Nc6 {[%clk 0:02:45]} 10. Rd1 {[%clk 0:02:51]}  d6 {[%clk 0:02:42]} 11. dxc5 {[%clk 0:02:29]}  Qxc5 {[%clk 0:02:39]} 12. Ba3 {[%clk 0:02:23]}  Qa5 {[%clk 0:02:25]} 13. Nd4 {[%clk 0:02:23]}  Qa6 {[%clk 0:02:08]} 14. c5 {[%clk 0:02:20]}  Na5 {[%clk 0:01:54]} 15. Qc2 {[%clk 0:02:10]}  Nc4 {[%clk 0:01:46]} 16. Bb4 {[%clk 0:02:10]}  dxc5 {[%clk 0:01:34]} 17. Bxc5 {[%clk 0:02:11]}  Re8 {[%clk 0:01:33]} 18. a4 {[%clk 0:02:11]}  Bd7 {[%clk 0:01:22]} 19. Rdb1 {[%clk 0:02:02]}  b6 {[%clk 0:00:47]} 20. Bxa8 {[%clk 0:02:01]}  Rxa8 {[%clk 0:00:48]} 21. Bxe7 {[%clk 0:02:00]}  Qb7 {[%clk 0:00:46]} 22. Bg5 {[%clk 0:01:47]}  Rc8 {[%clk 0:00:38]} 23. Rd1 {[%clk 0:01:46]}  Bh3 {[%clk 0:00:33]} 24. f3 {[%clk 0:01:46]}  h6 {[%clk 0:00:25]} 25. Bc1 {[%clk 0:01:45]}  Re8 {[%clk 0:00:24]} 26. e4 {[%clk 0:01:25]}  f5 {[%clk 0:00:23]} 27. Qa2 {[%clk 0:01:14]}  Qf7 {[%clk 0:00:22]} 28. exf5 {[%clk 0:01:10]}  Qd5 {[%clk 0:00:13]} 29. Bf4 {[%clk 0:01:04]}  Kh8 {[%clk 0:00:09]} 30. fxg6 {[%clk 0:01:00]}  Bxd4+ {[%clk 0:00:05]} 31. Rxd4 {[%clk 0:00:52]}  Qxf3 {[%clk 0:00:06]} 32. Qf2 {[%clk 0:00:22]}  Qc6 {[%clk 0:00:06]} 33. Bxh6 {[%clk 0:00:19]}  Ne5 {[%clk 0:00:06]} 34. Rf4 {[%clk 0:00:15]}  Qxg6 {[%clk 0:00:02]} 35. Rf8+ {[%clk 0:00:14]}  Kh7 {[%clk 0:00:02]} 36. Rxe8 {[%clk 0:00:14]}  Qxe8 {[%clk 0:00:03]} 37. Bf4 {[%clk 0:00:14]}  Ng4 {[%clk 0:00:03]} 38. Qc2+ {[%clk 0:00:14]}  Kg8 {[%clk 0:00:04]} 39. Rd1 {[%clk 0:00:13]}  Qc6 {[%clk 0:00:02]} 40. Qb3+ {[%clk 0:00:13]}  Kh8 {[%clk 0:00:02]} 41. Qd5 {[%clk 0:00:13]}  Qf6 {[%clk 0:00:02]} 42. Qd4 {[%clk 0:00:13]}  Kg7 {[%clk 0:00:01]} 43. c4 {[%clk 0:00:12]}  Qxd4+ {[%clk 0:00:02]} 44. Rxd4 {[%clk 0:00:12]}  Kg6 {[%clk 0:00:02]} 45. Rd6+ {[%clk 0:00:12]}  Kf5 {[%clk 0:00:02]} 46. Rd7 {[%clk 0:00:13]}  a5 {[%clk 0:00:02]} 47. Rb7 {[%clk 0:00:13]}  Ke4 {[%clk 0:00:02]} 48. Rxb6 {[%clk 0:00:13]}  Kf3 {[%clk 0:00:02]} 49. Rb3+ {[%clk 0:00:13]}  Ke2 {[%clk 0:00:03]} 50. c5 {[%clk 0:00:14]}  Ne5 {[%clk 0:00:01]} 51. Bxe5 {[%clk 0:00:13]} 1-0


[Site "https://www.chess.com"]

[Event "Titled Tuesday Blitz February 15 Late 2022"]
[White "Bellissimo, Joseph F."]
[Black "Xie, Bryan"]
[WhiteFideId "2609843"]
[BlackFideId "30941296"]
[WhiteElo "2061"]
[BlackElo "1899"]
[Result "1-0"]
[Round "04"]
[TimeControl "180+1"]
[Date "2022.02.16"]
[WhiteClock "0:01:18"]
[BlackClock "0:00:02"]

1. e4 {[%clk 0:03:00]}  c5 {[%clk 0:02:59]} 2. Nf3 {[%clk 0:03:00]}  e6 {[%clk 0:02:05]} 3. c3 {[%clk 0:02:59]}  Nf6 {[%clk 0:02:02]} 4. e5 {[%clk 0:02:59]}  Nd5 {[%clk 0:02:02]} 5. d4 {[%clk 0:03:00]}  cxd4 {[%clk 0:02:03]} 6. cxd4 {[%clk 0:03:01]}  d6 {[%clk 0:02:03]} 7. Bc4 {[%clk 0:03:00]}  Be7 {[%clk 0:01:55]} 8. O-O {[%clk 0:03:00]}  O-O {[%clk 0:01:46]} 9. Bd2 {[%clk 0:03:00]}  b6 {[%clk 0:01:45]} 10. Nc3 {[%clk 0:02:51]}  Nxc3 {[%clk 0:01:40]} 11. bxc3 {[%clk 0:02:42]}  Bb7 {[%clk 0:01:41]} 12. Re1 {[%clk 0:02:40]}  Na6 {[%clk 0:01:39]} 13. Qe2 {[%clk 0:02:39]}  Nc7 {[%clk 0:01:39]} 14. Rad1 {[%clk 0:02:37]}  Rc8 {[%clk 0:01:30]} 15. Bd3 {[%clk 0:02:35]}  h6 {[%clk 0:01:18]} 16. Bb1 {[%clk 0:02:25]}  d5 {[%clk 0:01:16]} 17. Qd3 {[%clk 0:02:24]}  g6 {[%clk 0:00:54]} 18. Bxh6 {[%clk 0:02:23]}  Re8 {[%clk 0:00:55]} 19. Re3 {[%clk 0:02:08]}  Ba6 {[%clk 0:00:50]} 20. Qd2 {[%clk 0:02:02]}  Nb5 {[%clk 0:00:41]} 21. h4 {[%clk 0:01:58]}  Na3 {[%clk 0:00:30]} 22. Ng5 {[%clk 0:01:45]}  Nc4 {[%clk 0:00:21]} 23. Qc1 {[%clk 0:01:18]}  Nxe3 {[%clk 0:00:21]} 24. Qxe3 {[%clk 0:01:18]}  Bxg5 {[%clk 0:00:16]} 25. Bxg5 {[%clk 0:01:18]}  Qc7 {[%clk 0:00:16]} 26. Bf6 {[%clk 0:01:17]}  Kh7 {[%clk 0:00:07]} 27. Qg5 {[%clk 0:01:18]}  Rg8 {[%clk 0:00:02]} 28. Qh5# {[%clk 0:01:18]} 1-0


[Site "https://www.chess.com"]

[Event "Titled Tuesday Blitz February 15 Late 2022"]
[White "Chabris, Christopher"]
[Black "Sanal, Vahap"]
[WhiteFideId "2005263"]
[BlackFideId "6300545"]
[WhiteElo "2324"]
[BlackElo "2603"]
[Result "0-1"]
[Round "04"]
[TimeControl "180+1"]
[Date "2022.02.16"]
[WhiteClock "0:00:02"]
[BlackClock "0:01:27"]

1. e4 {[%clk 0:02:59]}  d6 {[%clk 0:02:57]} 2. d4 {[%clk 0:02:58]}  Nf6 {[%clk 0:02:56]} 3. Nc3 {[%clk 0:02:59]}  e5 {[%clk 0:02:56]} 4. Nf3 {[%clk 0:02:54]}  Nbd7 {[%clk 0:02:56]} 5. g4 {[%clk 0:02:53]}  d5 {[%clk 0:02:55]} 6. exd5 {[%clk 0:02:40]}  exd4 {[%clk 0:02:45]} 7. Nxd4 {[%clk 0:02:35]}  Bb4 {[%clk 0:02:40]} 8. Nf5 {[%clk 0:02:22]}  O-O {[%clk 0:02:39]} 9. Qd4 {[%clk 0:02:00]}  Re8+ {[%clk 0:02:35]} 10. Be3 {[%clk 0:01:53]}  Bxc3+ {[%clk 0:02:32]} 11. bxc3 {[%clk 0:01:48]}  Ne5 {[%clk 0:02:32]} 12. Be2 {[%clk 0:01:26]}  Bxf5 {[%clk 0:02:28]} 13. gxf5 {[%clk 0:01:26]}  Qxd5 {[%clk 0:02:22]} 14. Qxd5 {[%clk 0:01:18]}  Nxd5 {[%clk 0:02:23]} 15. Bd4 {[%clk 0:00:58]}  Rac8 {[%clk 0:01:41]} 16. O-O-O {[%clk 0:00:52]}  c5 {[%clk 0:01:34]} 17. c4 {[%clk 0:00:41]}  Nf4 {[%clk 0:01:32]} 18. Bxe5 {[%clk 0:00:38]}  Nxe2+ {[%clk 0:01:32]} 19. Kb2 {[%clk 0:00:11]}  Rxe5 {[%clk 0:01:31]} 20. Rhe1 {[%clk 0:00:11]}  Ree8 {[%clk 0:01:26]} 21. Rd7 {[%clk 0:00:10]}  b6 {[%clk 0:01:26]} 22. Rxa7 {[%clk 0:00:08]}  Nd4 {[%clk 0:01:26]} 23. Rae7 {[%clk 0:00:06]}  Rxe7 {[%clk 0:01:26]} 24. Rxe7 {[%clk 0:00:06]}  Nxf5 {[%clk 0:01:27]} 25. Rb7 {[%clk 0:00:05]}  Nd6 {[%clk 0:01:27]} 26. Rd7 {[%clk 0:00:03]}  Nxc4+ {[%clk 0:01:28]} 27. Kc3 {[%clk 0:00:03]}  Ne5 {[%clk 0:01:28]} 28. Rd6 {[%clk 0:00:03]}  b5 {[%clk 0:01:28]} 29. f4 {[%clk 0:00:02]}  Nc4 {[%clk 0:01:27]} 30. Rd7 {[%clk 0:00:02]}  Nb6 {[%clk 0:01:27]} 0-1


[Site "https://www.chess.com"]

[Event "Titled Tuesday Blitz February 15 Late 2022"]
[White "Chernomordik, Pavel"]
[Black "Dias, Joao Batista"]
[WhiteFideId "2804530"]
[BlackFideId "2108240"]
[WhiteElo "2249"]
[BlackElo "1898"]
[Result "0-1"]
[Round "04"]
[TimeControl "180+1"]
[Date "2022.02.16"]
[WhiteClock "0:00:23"]
[BlackClock "0:00:28"]

1. e4 {[%clk 0:03:00]}  e6 {[%clk 0:03:00]} 2. Nc3 {[%clk 0:02:59]}  d5 {[%clk 0:03:00]} 3. d4 {[%clk 0:02:58]}  dxe4 {[%clk 0:03:00]} 4. Nxe4 {[%clk 0:02:58]}  Nf6 {[%clk 0:03:01]} 5. Nxf6+ {[%clk 0:02:57]}  Qxf6 {[%clk 0:03:00]} 6. Nf3 {[%clk 0:02:57]}  h6 {[%clk 0:03:00]} 7. Bd3 {[%clk 0:02:56]}  Bd6 {[%clk 0:02:59]} 8. Qe2 {[%clk 0:02:55]}  O-O {[%clk 0:02:58]} 9. Bd2 {[%clk 0:02:54]}  a6 {[%clk 0:02:59]} 10. O-O-O {[%clk 0:02:53]}  b5 {[%clk 0:02:58]} 11. g4 {[%clk 0:02:52]}  Bb7 {[%clk 0:02:55]} 12. Be4 {[%clk 0:02:51]}  Bxe4 {[%clk 0:02:52]} 13. Qxe4 {[%clk 0:02:50]}  Nd7 {[%clk 0:02:52]} 14. g5 {[%clk 0:02:50]}  hxg5 {[%clk 0:02:48]} 15. Nxg5 {[%clk 0:02:40]}  Qf5 {[%clk 0:02:47]} 16. Qg2 {[%clk 0:02:37]}  Bf4 {[%clk 0:02:46]} 17. h4 {[%clk 0:02:30]}  Bxd2+ {[%clk 0:02:45]} 18. Rxd2 {[%clk 0:02:29]}  Nf6 {[%clk 0:02:40]} 19. h5 {[%clk 0:02:24]}  Nh7 {[%clk 0:02:20]} 20. Nf3 {[%clk 0:02:11]}  Rad8 {[%clk 0:02:10]} 21. Ne5 {[%clk 0:02:07]}  Qf4 {[%clk 0:02:06]} 22. Rg1 {[%clk 0:02:02]}  Qh6 {[%clk 0:01:58]} 23. Kb1 {[%clk 0:01:48]}  Kh8 {[%clk 0:01:44]} 24. Rd3 {[%clk 0:01:37]}  Nf6 {[%clk 0:01:38]} 25. Qc6 {[%clk 0:01:22]}  Qf4 {[%clk 0:01:18]} 26. c3 {[%clk 0:01:07]}  Nxh5 {[%clk 0:01:17]} 27. Rh1 {[%clk 0:01:00]}  Qf5 {[%clk 0:01:15]} 28. Ka1 {[%clk 0:00:43]}  g6 {[%clk 0:01:09]} 29. Qxc7 {[%clk 0:00:39]}  Kg7 {[%clk 0:00:50]} 30. Rf3 {[%clk 0:00:39]}  Qe4 {[%clk 0:00:48]} 31. Qe7 {[%clk 0:00:34]}  Nf4 {[%clk 0:00:40]} 32. Qg5 {[%clk 0:00:27]}  Rh8 {[%clk 0:00:30]} 33. Re1 {[%clk 0:00:23]}  Qxe1# {[%clk 0:00:28]} 0-1


[Site "https://www.chess.com"]